Workbook

Sheet Tarife (hidden)
A1: Tarife für das Jahr | G1: 2022
B2: Plan A | D2: Plan B | F2: Plan C
B3: Männer | C3: Frauen | D3: Männer | E3: Frauen | F3: Männer | G3: Frauen | H3: SiFo | I3: VK | J3: Alter | N3: VK Rabatte | O3: Rabatt | P3: Vkmax
A4: =p_jahr-18 -> 2004 | B4: 0.0112 | C4: 0.0101 | D4: 0.0115 | E4: 0.0103 | F4: 0.0133 | G4: 0.0112 | H4: 0 | I4: 0.008 | J4: =p_jahr-A4 -> 18 | N4: 0 | O4: 0 | P4: 360
A5: =A4-1 -> 2003 | B5: 0.0112 | C5: 0.0101 | D5: 0.0115 | E5: 0.0103 | F5: 0.0133 | G5: 0.0112 | H5: 0 | I5: 0.008 | J5: 19 | N5: 1 | O5: 0.001 | P5: 336
A6: 2002 | B6: 0.0112 | C6: 0.0101 | D6: 0.0115 | E6: 0.0103 | F6: 0.0133 | G6: 0.0112 | H6: 0 | I6: 0.008 | J6: 20 | N6: 2 | O6: 0.002 | P6: 312
A7: 2001 | B7: 0.0112 | C7: 0.0101 | D7: 0.0115 | E7: 0.0103 | F7: 0.0133 | G7: 0.0112 | H7: 0 | I7: 0.008 | J7: 21 | N7: 3 | O7: 0.003 | P7: 288
A8: 2000 | B8: 0.0112 | C8: 0.0101 | D8: 0.0115 | E8: 0.0103 | F8: 0.0133 | G8: 0.0112 | H8: 0 | I8: 0.008 | J8: 22 | N8: 4 | O8: 0.004 | P8: 264
A9: 1999 | B9: 0.0112 | C9: 0.0101 | D9: 0.0115 | E9: 0.0103 | F9: 0.0133 | G9: 0.0112 | H9: 0 | I9: 0.008 | J9: 23 | N9: 5 | O9: 0.005 | P9: 240
A10: 1998 | B10: 0.0112 | C10: 0.0101 | D10: 0.0115 | E10: 0.0103 | F10: 0.0133 | G10: 0.0112 | H10: 0 | I10: 0.008 | J10: 24
A11: 1997 | B11: 0.09151 | C11: 0.09371 | D11: 0.09251 | E11: 0.09511 | F11: 0.09661 | G11: 0.09871 | H11: 0.0012 | I11: 0.014 | J11: 25 | K11: => SiFo ab 25ig
A12: 1996 | B12: 0.09151 | C12: 0.09371 | D12: 0.09251 | E12: 0.09511 | F12: 0.09661 | G12: 0.09871 | H12: 0.0012 | I12: 0.014 | J12: 26
A13: 1995 | B13: 0.09151 | C13: 0.09371 | D13: 0.09251 | E13: 0.09511 | F13: 0.09661 | G13: 0.09871 | H13: 0.0012 | I13: 0.014 | J13: 27
A14: 1994 | B14: 0.09151 | C14: 0.09371 | D14: 0.09251 | E14: 0.09511 | F14: 0.09661 | G14: 0.09871 | H14: 0.0012 | I14: 0.014 | J14: 28
A15: 1993 | B15: 0.09151 | C15: 0.09371 | D15: 0.09251 | E15: 0.09511 | F15: 0.09661 | G15: 0.09871 | H15: 0.0012 | I15: 0.014 | J15: 29
A16: 1992 | B16: 0.09151 | C16: 0.09371 | D16: 0.09251 | E16: 0.09511 | F16: 0.09661 | G16: 0.09871 | H16: 0.0012 | I16: 0.014 | J16: 30
A17: 1991 | B17: 0.09151 | C17: 0.09371 | D17: 0.09251 | E17: 0.09511 | F17: 0.09661 | G17: 0.09871 | H17: 0.0012 | I17: 0.014 | J17: 31
A18: 1990 | B18: 0.09151 | C18: 0.09371 | D18: 0.09251 | E18: 0.09511 | F18: 0.09661 | G18: 0.09871 | H18: 0.0012 | I18: 0.014 | J18: 32
A19: 1989 | B19: 0.09151 | C19: 0.09371 | D19: 0.09251 | E19: 0.09511 | F19: 0.09661 | G19: 0.09871 | H19: 0.0012 | I19: 0.014 | J19: 33
A20: 1988 | B20: 0.09151 | C20: 0.09371 | D20: 0.09251 | E20: 0.09511 | F20: 0.09661 | G20: 0.09871 | H20: 0.0012 | I20: 0.014 | J20: 34
A21: 1987 | B21: 0.12901 | C21: 0.13401 | D21: 0.13121 | E21: 0.13701 | F21: 0.13971 | G21: 0.14291 | H21: 0.0012 | I21: 0.014 | J21: 35
A22: 1986 | B22: 0.12901 | C22: 0.13401 | D22: 0.13121 | E22: 0.13701 | F22: 0.13971 | G22: 0.14291 | H22: 0.0012 | I22: 0.014 | J22: 36
A23: 1985 | B23: 0.12901 | C23: 0.13401 | D23: 0.13121 | E23: 0.13701 | F23: 0.13971 | G23: 0.14291 | H23: 0.0012 | I23: 0.014 | J23: 37
A24: 1984 | B24: 0.12901 | C24: 0.13401 | D24: 0.13121 | E24: 0.13701 | F24: 0.13971 | G24: 0.14291 | H24: 0.0012 | I24: 0.014 | J24: 38
A25: 1983 | B25: 0.12901 | C25: 0.13401 | D25: 0.13121 | E25: 0.13701 | F25: 0.13971 | G25: 0.14291 | H25: 0.0012 | I25: 0.014 | J25: 39
A26: 1982 | B26: 0.12901 | C26: 0.13401 | D26: 0.13121 | E26: 0.13701 | F26: 0.13971 | G26: 0.14291 | H26: 0.0012 | I26: 0.014 | J26: 40
A27: 1981 | B27: 0.12901 | C27: 0.13401 | D27: 0.13121 | E27: 0.13701 | F27: 0.13971 | G27: 0.14291 | H27: 0.0012 | I27: 0.014 | J27: 41
A28: 1980 | B28: 0.12901 | C28: 0.13401 | D28: 0.13121 | E28: 0.13701 | F28: 0.13971 | G28: 0.14291 | H28: 0.0012 | I28: 0.014 | J28: 42
A29: 1979 | B29: 0.12901 | C29: 0.13401 | D29: 0.13121 | E29: 0.13701 | F29: 0.13971 | G29: 0.14291 | H29: 0.0012 | I29: 0.014 | J29: 43
A30: 1978 | B30: 0.12901 | C30: 0.13401 | D30: 0.13121 | E30: 0.13701 | F30: 0.13971 | G30: 0.14291 | H30: 0.0012 | I30: 0.014 | J30: 44
A31: 1977 | B31: 0.18611 | C31: 0.18561 | D31: 0.19301 | E31: 0.19171 | F31: 0.20771 | G31: 0.20571 | H31: 0.0012 | I31: 0.014 | J31: 45
A32: 1976 | B32: 0.18611 | C32: 0.18561 | D32: 0.19301 | E32: 0.19171 | F32: 0.20771 | G32: 0.20571 | H32: 0.0012 | I32: 0.014 | J32: 46
A33: 1975 | B33: 0.18611 | C33: 0.18561 | D33: 0.19301 | E33: 0.19171 | F33: 0.20771 | G33: 0.20571 | H33: 0.0012 | I33: 0.014 | J33: 47
A34: 1974 | B34: 0.18611 | C34: 0.18561 | D34: 0.19301 | E34: 0.19171 | F34: 0.20771 | G34: 0.20571 | H34: 0.0012 | I34: 0.014 | J34: 48
A35: 1973 | B35: 0.18611 | C35: 0.18561 | D35: 0.19301 | E35: 0.19171 | F35: 0.20771 | G35: 0.20571 | H35: 0.0012 | I35: 0.014 | J35: 49
A36: 1972 | B36: 0.18611 | C36: 0.18561 | D36: 0.19301 | E36: 0.19171 | F36: 0.20771 | G36: 0.20571 | H36: 0.0012 | I36: 0.014 | J36: 50
A37: 1971 | B37: 0.18611 | C37: 0.18561 | D37: 0.19301 | E37: 0.19171 | F37: 0.20771 | G37: 0.20571 | H37: 0.0012 | I37: 0.014 | J37: 51
A38: 1970 | B38: 0.18611 | C38: 0.18561 | D38: 0.19301 | E38: 0.19171 | F38: 0.20771 | G38: 0.20571 | H38: 0.0012 | I38: 0.014 | J38: 52
A39: 1969 | B39: 0.18611 | C39: 0.18561 | D39: 0.19301 | E39: 0.19171 | F39: 0.20771 | G39: 0.20571 | H39: 0.0012 | I39: 0.014 | J39: 53
A40: 1968 | B40: 0.18611 | C40: 0.18561 | D40: 0.19301 | E40: 0.19171 | F40: 0.20771 | G40: 0.20571 | H40: 0.0012 | I40: 0.014 | J40: 54
A41: 1967 | B41: 0.21812 | C41: 0.21502 | D41: 0.22852 | E41: 0.22372 | F41: 0.24612 | G41: 0.23782 | H41: 0.0012 | I41: 0.014 | J41: 55
A42: 1966 | B42: 0.21812 | C42: 0.21502 | D42: 0.22852 | E42: 0.22372 | F42: 0.24612 | G42: 0.23782 | H42: 0.0012 | I42: 0.014 | J42: 56
A43: 1965 | B43: 0.21812 | C43: 0.21502 | D43: 0.22852 | E43: 0.22372 | F43: 0.24612 | G43: 0.23782 | H43: 0.0012 | I43: 0.014 | J43: 57
A44: 1964 | B44: 0.21812 | C44: 0.21502 | D44: 0.22852 | E44: 0.22372 | F44: 0.24612 | G44: 0.23782 | H44: 0.0012 | I44: 0.014 | J44: 58
A45: 1963 | B45: 0.21812 | C45: 0.21502 | D45: 0.22852 | E45: 0.22372 | F45: 0.24612 | G45: 0.23782 | H45: 0.0012 | I45: 0.014 | J45: 59
A46: 1962 | B46: 0.21012 | C46: 0.20532 | D46: 0.21962 | E46: 0.21212 | F46: 0.23102 | G46: 0.22142 | H46: 0.0012 | I46: 0.014 | J46: 60
A47: 1961 | B47: 0.21012 | C47: 0.20532 | D47: 0.21962 | E47: 0.21212 | F47: 0.23102 | G47: 0.22142 | H47: 0.0012 | I47: 0.014 | J47: 61
A48: 1960 | B48: 0.21012 | C48: 0.20532 | D48: 0.21962 | E48: 0.21212 | F48: 0.23102 | G48: 0.22142 | H48: 0.0012 | I48: 0.014 | J48: 62
A49: 1959 | B49: 0.21012 | C49: 0.20532 | D49: 0.21962 | E49: 0.21212 | F49: 0.23102 | G49: 0.22142 | H49: 0.0012 | I49: 0.014 | J49: 63
A50: 1958 | B50: 0.21012 | C50: 0.20532 | D50: 0.21962 | E50: 0.21212 | F50: 0.23102 | G50: 0.22142 | H50: 0.0012 | I50: 0.014 | J50: 64
A51: 1957 | B51: 0.21012 | C51: 0 | D51: 0.21962 | E51: 0 | F51: 0.23102 | G51: 0 | H51: 0.0012 | I51: 0.014 | J51: 65
A60: Sparprämie | B60: Männer | C60: Frauen | D60: Plan E | E60: Plan F | F60: Plan E+ | G60: Plan F+
A61: 18 | D61: 0 | E61: 0 | F61: 0 | G61: 0
A62: 19 | D62: 0 | E62: 0 | F62: 0 | G62: 0
A63: 20 | D63: 0 | E63: 0 | F63: 0 | G63: 0
A64: 21 | D64: 0 | E64: 0 | F64: 0 | G64: 0
A65: 22 | D65: 0 | E65: 0 | F65: 0 | G65: 0
A66: 23 | D66: 0 | E66: 0 | F66: 0 | G66: 0
A67: 24 | D67: 0 | E67: 0 | F67: 0 | G67: 0
A68: 25 | B68: 0.07 | C68: 0.07 | D68: 0.08 | E68: 0.13 | F68: 0.08 | G68: 0.13
A69: 26 | B69: 0.07 | C69: 0.07 | D69: 0.08 | E69: 0.13 | F69: 0.08 | G69: 0.13
A70: 27 | B70: 0.07 | C70: 0.07 | D70: 0.08 | E70: 0.13 | F70: 0.08 | G70: 0.13
A71: 28 | B71: 0.07 | C71: 0.07 | D71: 0.08 | E71: 0.13 | F71: 0.08 | G71: 0.13
A72: 29 | B72: 0.07 | C72: 0.07 | D72: 0.08 | E72: 0.13 | F72: 0.08 | G72: 0.13
A73: 30 | B73: 0.07 | C73: 0.07 | D73: 0.08 | E73: 0.13 | F73: 0.08 | G73: 0.13
A74: 31 | B74: 0.07 | C74: 0.07 | D74: 0.08 | E74: 0.13 | F74: 0.08 | G74: 0.13
A75: 32 | B75: 0.07 | C75: 0.07 | D75: 0.08 | E75: 0.13 | F75: 0.08 | G75: 0.13
A76: 33 | B76: 0.07 | C76: 0.07 | D76: 0.08 | E76: 0.13 | F76: 0.08 | G76: 0.13
A77: 34 | B77: 0.07 | C77: 0.07 | D77: 0.08 | E77: 0.13 | F77: 0.08 | G77: 0.13
A78: 35 | B78: 0.1 | C78: 0.1 | D78: 0.05 | E78: 0.1 | F78: 0.05 | G78: 0.1
A79: 36 | B79: 0.1 | C79: 0.1 | D79: 0.05 | E79: 0.1 | F79: 0.05 | G79: 0.1
A80: 37 | B80: 0.1 | C80: 0.1 | D80: 0.05 | E80: 0.1 | F80: 0.05 | G80: 0.1
A81: 38 | B81: 0.1 | C81: 0.1 | D81: 0.05 | E81: 0.1 | F81: 0.05 | G81: 0.1
A82: 39 | B82: 0.1 | C82: 0.1 | D82: 0.05 | E82: 0.1 | F82: 0.05 | G82: 0.1
A83: 40 | B83: 0.1 | C83: 0.1 | D83: 0.05 | E83: 0.1 | F83: 0.05 | G83: 0.1
A84: 41 | B84: 0.1 | C84: 0.1 | D84: 0.1 | E84: 0.15 | F84: 0.1 | G84: 0.15
A85: 42 | B85: 0.1 | C85: 0.1 | D85: 0.1 | E85: 0.15 | F85: 0.1 | G85: 0.15
A86: 43 | B86: 0.1 | C86: 0.1 | D86: 0.1 | E86: 0.15 | F86: 0.1 | G86: 0.15
A87: 44 | B87: 0.1 | C87: 0.1 | D87: 0.1 | E87: 0.15 | F87: 0.1 | G87: 0.15
A88: 45 | B88: 0.15 | C88: 0.15 | D88: 0.05 | E88: 0.1 | F88: 0.05 | G88: 0.1
A89: 46 | B89: 0.15 | C89: 0.15 | D89: 0.05 | E89: 0.1 | F89: 0.05 | G89: 0.1
A90: 47 | B90: 0.15 | C90: 0.15 | D90: 0.05 | E90: 0.1 | F90: 0.05 | G90: 0.1
A91: 48 | B91: 0.15 | C91: 0.15 | D91: 0.05 | E91: 0.1 | F91: 0.05 | G91: 0.1
A92: 49 | B92: 0.15 | C92: 0.15 | D92: 0.05 | E92: 0.1 | F92: 0.05 | G92: 0.1
A93: 50 | B93: 0.15 | C93: 0.15 | D93: 0.05 | E93: 0.1 | F93: 0.05 | G93: 0.1
A94: 51 | B94: 0.15 | C94: 0.15 | D94: 0.05 | E94: 0.1 | F94: 0.05 | G94: 0.1
A95: 52 | B95: 0.15 | C95: 0.15 | D95: 0.05 | E95: 0.1 | F95: 0.05 | G95: 0.1
A96: 53 | B96: 0.15 | C96: 0.15 | D96: 0.05 | E96: 0.1 | F96: 0.05 | G96: 0.1
A97: 54 | B97: 0.15 | C97: 0.15 | D97: 0.05 | E97: 0.1 | F97: 0.05 | G97: 0.1
A98: 55 | B98: 0.18 | C98: 0.18 | D98: 0.02 | E98: 0.07 | F98: 0.02 | G98: 0.07
A99: 56 | B99: 0.18 | C99: 0.18 | D99: 0.02 | E99: 0.07 | F99: 0.02 | G99: 0.07
A100: 57 | B100: 0.18 | C100: 0.18 | D100: 0.02 | E100: 0.07 | F100: 0.02 | G100: 0.07
A101: 58 | B101: 0.18 | C101: 0.18 | D101: 0.02 | E101: 0.07 | F101: 0.02 | G101: 0.07
A102: 59 | B102: 0.18 | C102: 0.18 | D102: 0.02 | E102: 0.07 | F102: 0.02 | G102: 0.07
A103: 60 | B103: 0.18 | C103: 0.18 | D103: 0.02 | E103: 0.07 | F103: 0.02 | G103: 0.07
A104: 61 | B104: 0.18 | C104: 0.18 | D104: 0.02 | E104: 0.07 | F104: 0.02 | G104: 0.07
A105: 62 | B105: 0.18 | C105: 0.18 | D105: 0.02 | E105: 0.07 | F105: 0.02 | G105: 0.07
A106: 63 | B106: 0.18 | C106: 0.18 | D106: 0.02 | E106: 0.07 | F106: 0.02 | G106: 0.07
A107: 64 | B107: 0.18 | C107: 0.18 | D107: 0.02 | E107: 0.07 | F107: 0.02 | G107: 0.07
A108: 65 | B108: 0.18 | D108: 0.02 | E108: 0.07 | F108: 0.02 | G108: 0.07
A116: Risikoprämie | B116: Plan E+ | C116: Plan F+
A117: 18 | B117: 0 | C117: 0
A118: 19 | B118: 0 | C118: 0
A119: 20 | B119: 0 | C119: 0
A120: 21 | B120: 0 | C120: 0
A121: 22 | B121: 0 | C121: 0
A122: 23 | B122: 0 | C122: 0
A123: 24 | B123: 0 | C123: 0
A124: 25 | B124: 0.001 | C124: 0.0027
A125: 26 | B125: 0.001 | C125: 0.0027
A126: 27 | B126: 0.001 | C126: 0.0027
A127: 28 | B127: 0.001 | C127: 0.0027
A128: 29 | B128: 0.001 | C128: 0.0027
A129: 30 | B129: 0.001 | C129: 0.0027
A130: 31 | B130: 0.001 | C130: 0.0027
A131: 32 | B131: 0.001 | C131: 0.0027
A132: 33 | B132: 0.001 | C132: 0.0027
A133: 34 | B133: 0.001 | C133: 0.0027
A134: 35 | B134: 0.001 | C134: 0.0027
A135: 36 | B135: 0.001 | C135: 0.0027
A136: 37 | B136: 0.001 | C136: 0.0027
A137: 38 | B137: 0.001 | C137: 0.0027
A138: 39 | B138: 0.001 | C138: 0.0027
A139: 40 | B139: 0.001 | C139: 0.0027
A140: 41 | B140: 0.001 | C140: 0.0027
A141: 42 | B141: 0.001 | C141: 0.0027
A142: 43 | B142: 0.001 | C142: 0.0027
A143: 44 | B143: 0.001 | C143: 0.0027
A144: 45 | B144: 0.001 | C144: 0.0027
A145: 46 | B145: 0.001 | C145: 0.0027
A146: 47 | B146: 0.001 | C146: 0.0027
A147: 48 | B147: 0.001 | C147: 0.0027
A148: 49 | B148: 0.001 | C148: 0.0027
A149: 50 | B149: 0.001 | C149: 0.0027
A150: 51 | B150: 0.001 | C150: 0.0027
A151: 52 | B151: 0.001 | C151: 0.0027
A152: 53 | B152: 0.001 | C152: 0.0027
A153: 54 | B153: 0.001 | C153: 0.0027
A154: 55 | B154: 0.001 | C154: 0.0027
A155: 56 | B155: 0.001 | C155: 0.0027
A156: 57 | B156: 0.001 | C156: 0.0027
A157: 58 | B157: 0.001 | C157: 0.0027
A158: 59 | B158: 0.001 | C158: 0.0027
A159: 60 | B159: 0.001 | C159: 0.0027
A160: 61 | B160: 0.001 | C160: 0.0027
A161: 62 | B161: 0.001 | C161: 0.0027
A162: 63 | B162: 0.001 | C162: 0.0027
A163: 64 | B163: 0.001 | C163: 0.0027
A164: 65 | B164: 0.001 | C164: 0.0027

Sheet Parameter (hidden)
A1: Parameter | B1: Wert 1 | C1: Wert 2
A2: Sprache | B2: =u_sprache1 -> it
A3: Jahr | B3: 2022 | D3: -> Regelt Gültigkeit des Rechners
A4: Jahr Beginn | B4: =DATE(B3,1,1) -> 2022-01-01
A5: Jahr Ende | B5: =DATE(B3,12,31) -> 2022-12-31
A6: =CONCATENATE("Anzahl Tage im Jahr ",p_jahr) -> Anzahl Tage im Jahr 2022 | B6: =p_jahr_ende-p_jahr_beginn+1 -> 365
A7: max. AHV-Jahresrente | B7: 28680 | D7: -> Wichtig für alle Parameter
A8: min. koordinierter Lohn | B8: =B7*0.125 -> 3585
A9: max. Koordinationsabzug | B9: =B7*0.875*Listen!F88 -> 25095
A10: Eintrittsschwelle | B10: =B7*0.75*Listen!F88 -> 21510
A11: max. vers. BVG Lohn | B11: =B7*30*Listen!F88 -> 860400
A12: max. koordinierter Lohn | B12: =B7*2.125*Listen!F88 -> 60945
A13: max massgebender AHV Lohn | B13: =B7*3*Listen!F88 -> 86040
A14: =CONCATENATE("Zins im Jahr ",p_jahr) -> Zins im Jahr 2022 | B14: 0.01 | D14: Verzinsung Sparguthaben
A15: Minimales Alter | B15: 18
A16: Pensionsalter M | B16: 65
A17: Pensionsalter W | B17: 64

Sheet Listen (hidden)
A1: Sprache
A2: de | B2: 1 | C2: =VLOOKUP(u_sprache1,Listen!A2:B4,2,FALSE)+1 -> 4
A3: fr | B3: 2
A4: it | B4: 3
A7: Geschlecht
A8: =VLOOKUP("geschlecht1",texte,u_sprache,FALSE) -> Uomo | B8: 1 | C8: =VLOOKUP(u_geschlecht1,A8:B9,2,FALSE) -> 1
A9: =VLOOKUP("geschlecht2",texte,u_sprache,FALSE) -> Donna | B9: 2
A11: =VLOOKUP("geschlecht1k",texte,u_sprache,FALSE) -> M | C11: =IF(u_geschlecht=1,A11,IF(u_geschlecht=2,A12,"")) -> M
A12: =VLOOKUP("geschlecht2k",texte,u_sprache,FALSE) -> F
A15: Basispläne
A16: =VLOOKUP("planA",texte,u_sprache,FALSE) -> Piano A | B16: 1 | C16: =VLOOKUP(u_plan1,A16:B18,2,FALSE) -> 1
A17: =VLOOKUP("planB",texte,u_sprache,FALSE) -> Piano B | B17: 3
A18: =VLOOKUP("planC",texte,u_sprache,FALSE) -> Piano C | B18: 5
A21: Zusatzpläne / Kaderplan
A22: =VLOOKUP("plan0",texte,u_sprache,FALSE) -> Senza piano supplementare | B22: 0 | C22: =VLOOKUP(u_zusatzplan1,A22:B26,2,FALSE) -> 0
A23: =VLOOKUP("planE",texte,u_sprache,FALSE) -> Piano supplementare E | B23: 1
A24: =VLOOKUP("planF",texte,u_sprache,FALSE) -> Piano supplementare F | B24: 2
A25: =VLOOKUP("planE+",texte,u_sprache,FALSE) -> Piano supplementare E+ | B25: 3
A26: =VLOOKUP("planF+",texte,u_sprache,FALSE) -> Piano supplementare F+ | B26: 4
A29: Koordinationsabzug
A30: =VLOOKUP("mitKoA",texte,u_sprache,FALSE) -> Con deduzione di coordinamento | B30: 1 | C30: =VLOOKUP(u_plan_koa1,A30:B31,2,FALSE) -> 1
A31: =VLOOKUP("ohneKoA",texte,u_sprache,FALSE) -> senza deduzione di coordinamento | B31: 0
A34: VK Abzug
A35: =VLOOKUP("vk0",texte,u_sprache,FALSE) -> Tariffa standard | B35: 0 | C35: =VLOOKUP(u_vkrabatt1,A35:B40,2,FALSE) -> 0
A36: =VLOOKUP("vk1",texte,u_sprache,FALSE) -> Tariffa dei costi di gestione 1 | B36: 1
A37: =VLOOKUP("vk2",texte,u_sprache,FALSE) -> Tariffa dei costi di gestione 2 | B37: 2
A38: =VLOOKUP("vk3",texte,u_sprache,FALSE) -> Tariffa dei costi di gestione 3 | B38: 3
A39: =VLOOKUP("vk4",texte,u_sprache,FALSE) -> Tariffa dei costi di gestione 4 | B39: 4
A40: =VLOOKUP("vk5",texte,u_sprache,FALSE) -> Tariffa dei costi di gestione 5 | B40: 5
A42: Texte Bestandesübersicht (für Makro)
A43: =VLOOKUP("zusatz_vk",texte,u_sprache,FALSE) -> Costi di gestione piano supplementare
A44: =VLOOKUP("grundbeitrag_vk",texte,u_sprache,FALSE) -> Contributo di base per le spese amministrtive
A45: =VLOOKUP("prämie_betrieb",texte,u_sprache,FALSE) -> Totale die contributi della società
A46: =VLOOKUP("name",texte,u_sprache,FALSE) -> Nome / Cognome
A47: =VLOOKUP("jahrgang2",texte,u_sprache,FALSE) -> Annata
A48: =VLOOKUP("ahvlohn_k",texte,u_sprache,FALSE) -> Salario AVS
A49: =VLOOKUP("vers_lohn",texte,u_sprache,FALSE) -> Salario ass. durante l’impiego
A50: =VLOOKUP("sparprämie_best",texte,u_sprache,FALSE) -> Premi risparmio (%)
A51: =VLOOKUP("sparprämie2_best",texte,u_sprache,FALSE) -> Premi risparmio
A52: =VLOOKUP("risikoprämie_best",texte,u_sprache,FALSE) -> Premi rischio (%)
A53: =VLOOKUP("risikoprämie2_best",texte,u_sprache,FALSE) -> Premi rischio
A54: =VLOOKUP("verwkosten2",texte,u_sprache,FALSE) -> Costi di gestione
A55: =VLOOKUP("sifo2",texte,u_sprache,FALSE) -> Fondo di garanzia
A56: =VLOOKUP("tot_prämie",texte,u_sprache,FALSE) -> Totale del premio
A57: =VLOOKUP("beitrag_an",texte,u_sprache,FALSE) -> Contributo del lavoratore
A58: =VLOOKUP("beitrag_an2",texte,u_sprache,FALSE) -> Contributo del lavoratore
A59: =VLOOKUP("titel2",texte,u_sprache,FALSE) -> Contributi della previdenza professionale
A60: =VLOOKUP("as_pencas",texte,u_sprache,FALSE) -> Agrisano Pencas
A61: =VLOOKUP("as_pencas1",texte,u_sprache,FALSE) -> Previdenza professionale
A62: =VLOOKUP("fusszeile",texte,u_sprache,FALSE) -> Laurstrasse 10 | 5201 Brugg | Telefono +41 (0)56 461 78 11 | Fax +41 (0)56 461 71 01 pencas@agrisano.ch | www.agrisano.ch
A63: =VLOOKUP("hinweis_zins",texte,u_sprache,FALSE) -> Le supplemento per versamento posticipato non è considerato.
A64: =VLOOKUP("text1",texte,u_sprache,FALSE) -> Il calcolo dei contributi si basa sui dati registrati. In definitiva, è decisiva la fattura dei contributi di Agrisano Pencas, che viene redatta sulla base dei salari AVS effettivamente dichiarati.
A65: =VLOOKUP("titel_hinweis",texte,u_sprache,FALSE) -> Indicazione
A66: =VLOOKUP("beitrag_ag",texte,u_sprache,FALSE) -> Contributo del datore di lavoro
A68: Rentenanspruch | B68: IV-Grad | C68: Faktor
A69: Liste Invalidität ab 2022 | E69: Liste Invalidität
A70: keine Reduktion | B70: 0 | C70: 1 | E70: =VLOOKUP("auswahl_iv1",texte,u_sprache,FALSE) -> Nessuna riduzione | F70: 0 | G70: 1
A71: 0.25 | B71: 40 | C71: 0.75 | E71: 25% | F71: 40 | G71: 0.75
A72: 0.275 | B72: 41 | C72: 0.725 | E72: 50% | F72: 50 | G72: 0.5
A73: 0.3 | B73: 42 | C73: 0.7 | E73: 75% | F73: 60 | G73: 0.25
A74: 0.325 | B74: 43 | C74: 0.675 | E74: 75% | F74: 66.66 | G74: 0.25
A75: 0.35 | B75: 44 | C75: 0.65 | E75: =VLOOKUP("auswahl_iv2",texte,u_sprache,FALSE) -> Nessuna LPP | F75: 70 | G75: 0
A76: 0.375 | B76: 45 | C76: 0.625
A77: 0.4 | B77: 46 | C77: 0.6 | E77: Faktor | F77: =IF(u_ivaktiv1=0,1,VLOOKUP(u_ivgrad*100,F70:G75,2,TRUE)) -> 1
A78: 0.425 | B78: 47 | C78: 0.575 | E78: Reduktion | F78: =INDEX(E70:E75,MATCH(F77,G70:G75,0)) -> Nessuna riduzione
A79: 0.45 | B79: 48 | C79: 0.55
A80: 0.475 | B80: 49 | C80: 0.525
A81: 0.5 | B81: 50 | C81: 0.5 | E81: Eintritt AUF
A82: 0.51 | B82: 51 | C82: 0.49 | E82: alt
A83: 0.52 | B83: 52 | C83: 0.48 | E83: 2022
A84: 0.53 | B84: 53 | C84: 0.47
A85: 0.54 | B85: 54 | C85: 0.46
A86: 0.55 | B86: 55 | C86: 0.45
A87: 0.56 | B87: 56 | C87: 0.44
A88: 0.57 | B88: 57 | C88: 0.43 | E88: IV-Faktor | F88: =IF('Beitragsrechner IV'!G3=2022,u_ivfaktor,u_ivfaktor2) -> 1
A89: 0.58 | B89: 58 | C89: 0.42 | E89: Reduktion | F89: =IF('Beitragsrechner IV'!G3=2022,u_ivreduktion,u_ivreduktion2) -> Nessuna riduzione
A90: 0.59 | B90: 59 | C90: 0.41
A91: 0.6 | B91: 60 | C91: 0.4
A92: 0.61 | B92: 61 | C92: 0.39
A93: 0.62 | B93: 62 | C93: 0.38
A94: 0.63 | B94: 63 | C94: 0.37
A95: 0.64 | B95: 64 | C95: 0.36
A96: 0.65 | B96: 65 | C96: 0.35
A97: 0.66 | B97: 66 | C97: 0.34
A98: 0.67 | B98: 67 | C98: 0.33
A99: 0.68 | B99: 68 | C99: 0.32
A100: 0.69 | B100: 69 | C100: 0.31
A101: kein BVG | B101: 70 | C101: 0
A103: Faktor | B103: =IF(u_ivaktiv1=0,1,VLOOKUP(u_ivgrad*100,B70:C101,2,TRUE)) -> 1
A104: Reduktion | B104: =INDEX(A70:A101,MATCH(B103,Listen!C70:C101,0)) -> keine Reduktion
A106: IV Rechner
A107: =VLOOKUP("aktiv",texte,u_sprache,FALSE) -> attivo | B107: 1 | C107: =IFERROR(IF(u_ivaktiv=A107,B107,B108),B108) -> 0
A108: =VLOOKUP("nichtaktiv",texte,u_sprache,FALSE) -> non attivo | B108: 0
A113: Usereingaben
A114: Vorname / Name | B114: =IF(u_ivaktiv1=0,C114,D114) -> 0 | C114: =Beitragsrechner!D10 -> 0 | D114: ='Beitragsrechner IV'!D14 -> 0
A115: AHV Nr | B115: 0 | C115: =Beitragsrechner!D11 -> 0 | D115: ='Beitragsrechner IV'!D15 -> 0
A116: Jahrgang | B116: 1970 | C116: =Beitragsrechner!D12 -> 1970 | D116: ='Beitragsrechner IV'!D16 -> 1988
A117: Geschlecht | B117: Uomo | C117: =Beitragsrechner!D13 -> Uomo | D117: ='Beitragsrechner IV'!D17 -> männlich
A118: Basisplan | B118: Piano A | C118: =Beitragsrechner!D14 -> Piano A | D118: ='Beitragsrechner IV'!D18 -> Plan A
A119: Koordinationsabzug | B119: Con deduzione di coordinamento | C119: =Beitragsrechner!D15 -> Con deduzione di coordinamento | D119: ='Beitragsrechner IV'!D19 -> ohne Koordinationabzug
A120: Verwaltungskostentarif | B120: Tariffa standard | C120: =Beitragsrechner!D16 -> Tariffa standard | D120: ='Beitragsrechner IV'!D20 -> Standardtarif
A121: Zusatzplan | B121: Senza piano supplementare | C121: =Beitragsrechner!D17 -> Senza piano supplementare | D121: ='Beitragsrechner IV'!D21 -> Zusatzplan E
A122: Anstellungsdauer von | B122: 2022-01-01 | C122: =Beitragsrechner!I11 -> 2022-01-01 | D122: ='Beitragsrechner IV'!I15 -> 2022-01-01
A123: Anstellungsdauer bis | B123: 2022-12-31 | C123: =Beitragsrechner!I12 -> 2022-12-31 | D123: ='Beitragsrechner IV'!I16 -> 2022-12-31
A124: AHV-Lohn während der Anstellung: | B124: 86040 | C124: =Beitragsrechner!I14 -> 86040 | D124: ='Beitragsrechner IV'!I18 -> 48000

Sheet Texte (hidden)
A1: ID | B1: Deutsch | C1: Französisch | D1: Italienisch
A2: titel1 | B2: Berechnung der Beiträge an die berufliche Vorsorge | C2: Calcul des cotisations à la prévoyance professionnelle | D2: Calcolo dei contributi a favore della previdenza professionale
A3: text1 | B3: Die Beitragsberechnung beruht auf den erfassten Daten. Massgebend ist schlussendlich die Beitragsrechnung der Agrisano Pencas, welche aufgrund der effektiv gemeldeten AHV-Löhne erstellt wird. | C3: Le calcul des cotisations se base sur les données saisies. C'est finalement le calcul des cotisations d'Agrisano Pencas, établi sur la base des salaires AVS effectivement déclarés, qui est déterminant. | D3: Il calcolo dei contributi si basa sui dati registrati. In definitiva, è decisiva la fattura dei contributi di Agrisano Pencas, che viene redatta sulla base dei salari AVS effettivamente dichiarati.
A4: text1a | B4: Sie beinhaltet zudem einen Zins für das nachschüssige Inkasso. | C4: Celle-ci comprend notamment un intérêt pour paiement à terme échu. | D4: Le supplemento per versamento posticipato è include.
A5: text2 | B5: Bei Fragen zur Beitragsrechnung wenden Sie sich bitte an die Agrisano Stiftung Globalversicherung (Tel. 056 461 78 55). Für die Berechnung der Beiträge von (teil-)invaliden Arbeitnehmenden nehmen Sie bitte Kontakt mit der Agrisano Pencas auf (Tel. 056 461 78 11). | C5: Pour toute question, veuillez prendre contact avec Fondation Agrisano, Aussurance globale (Tél. 056 461 78 55). Pour le calcul des cotisations d’employés invalides (partiels ou totaux), veuillez prendre contact avec Agrisano Pencas (Tél. 056 461 78 11). | D5: In caso di domande sull’avviso di premio si prega di rivolgersi alla Fondazione Agrisano, Assicurazione globale (tel. 056 461 78 55). Per il calcolo del premio di impiegati (parzialmente) invalidi si prega di prendere contatto con Agrisano Pencas (tel. 056 461 78 11).
A6: text3 | B6: Die Versicherungspflicht gilt nur für Anstellungsverhältnisse, die für mehr als 3 Monate dauern (gilt auch, wenn das Arbeitsverhältnis zwischenzeitlich maximal 3 Monate unterbrochen wird, die Gesamtbeschäftigungsdauer aber mehr als 92 Tage beträgt). | C6: L'obligation d'assurance s’applique uniquement aux rapports de travail qui ont été conclus pour plus de 3 mois (vaut également si la relation de travail est interrompue au maximum 3 mois, mais que la durée totale de l'emploi est de plus de 92 jours). | D6: L’obbligo di assicurazione trova applicazione soltanto per i rapporti d’impiego che sono stati contratti per una durata superiore a 3 mesi (applicabile anche se il rapporto di lavoro viene interrotto temporaneamente per un periodo massimo di 3 mesi, ma la durata complessiva dell’occupazione è comunque superiore a 92 giorni).
A7: text_druck | B7: Die Beitragsberechnung beruht auf den erfassten Daten. Massgebend ist schlussendlich die Beitragsrechnung der Agrisano Pencas, welche aufgrund der effektiv gemeldeten AHV-Löhne erstellt wird. Sie beinhaltet zudem einen Zins für das nachschüssige Inkasso. Bei Fragen zur Beitragsrechnung wenden Sie sich bitte an die Agrisano Stiftung Globalversicherung (Tel. 056 461 78 55). Für die Berechnung der Beiträge von (teil-)invaliden Arbeitnehmenden nehmen Sie bitte Kontakt mit der Agrisano Pencas auf (Tel. 056 461 78 11). Die Versicherungspflicht gilt nur für Anstellungsverhältnisse, die für mehr als 3 Monate dauern (gilt auch, wenn das Arbeitsver-hältnis zwischenzeitlich maximal 3 Monate unterbrochen wird, die Gesamtbeschäftigungsdauer aber mehr als 92 Tage beträgt). | C7: Le calcul des cotisations se base sur les données saisies. C'est finalement le calcul des cotisations d'Agrisano Pencas, établi sur la base des salaires AVS effectivement déclarés, qui est déterminant. Celle-ci comprend notamment un intérêt pour paiement à terme échu. Pour toute question, veuillez prendre contact avec Fondation Agrisano, Aussurance globale Pour le calcul des cotisations d’employés invalides (partiels ou totaux), veuillez prendre contact avec Agrisano Pencas (Tél. 056 461 78 11). L'obligation d'assurance s’applique uniquement aux rapports de travail qui ont été conclus pour plus de 3 mois (vaut également si la relation de travail est interrompue au maximum 3 mois, mais que la durée totale de l'emploi est de plus de 92 jours). | D7: Il calcolo dei contributi si basa sui dati registrati. In definitiva, è decisiva la fattura dei contributi di Agrisano Pencas, che viene redatta sulla base dei salari AVS effettivamente dichiarati. Le supplemento per versamento posticipato è include. In caso di domande sull’avviso di premio si prega di rivolgersi alla Fondazione Agrisano, Assicurazione globale (tel. 056 461 78 55). Per il calcolo del premio di impiegati (parzialmente) invalidi si prega di prendere contatto con Agrisano Pencas (tel. 056 461 78 11). L’obbligo di assicurazione trova applicazione soltanto per i rapporti d’impiego che sono stati contratti per una durata superiore a 3 mesi (applicabile anche se il rapporto di lavoro viene interrotto temporaneamente per un periodo massimo di 3 mesi, ma la durata complessiva dell’occupazione è comunque superiore a 92 giorni).
A8: geschlecht1 | B8: männlich | C8: masculin | D8: Uomo
A9: geschlecht2 | B9: weiblich | C9: feminin | D9: Donna
A10: planA | B10: Plan A | C10: Plan A | D10: Piano A
A11: planB | B11: Plan B | C11: Plan B | D11: Piano B
A12: planC | B12: Plan C | C12: Plan C | D12: Piano C
A13: planE | B13: Zusatzplan E | C13: Plan supplementaire E | D13: Piano supplementare E
A14: planF | B14: Zusatzplan F | C14: Plan supplementaire F | D14: Piano supplementare F
A15: planE+ | B15: Zusatzplan E+ | C15: Plan supplementaire E+ | D15: Piano supplementare E+
A16: planF+ | B16: Zusatzplan F+ | C16: Plan supplementaire F+ | D16: Piano supplementare F+
A17: plan0 | B17: Kein Zusatzplan | C17: Sans plan supplementaire | D17: Senza piano supplementare
A18: mitKoA | B18: mit Koordinationsabzug | C18: avec déduction de coordination | D18: Con deduzione di coordinamento
A19: ohneKoA | B19: ohne Koordinationabzug | C19: sans déduction de coordination | D19: senza deduzione di coordinamento
A20: vk0 | B20: Standardtarif | C20: Tarif standard | D20: Tariffa standard
A21: vk1 | B21: Verwaltungskostentarif 1 | C21: Tarif de frais administratifs 1 | D21: Tariffa dei costi di gestione 1
A22: vk2 | B22: Verwaltungskostentarif 2 | C22: Tarif de frais administratifs 2 | D22: Tariffa dei costi di gestione 2
A23: vk3 | B23: Verwaltungskostentarif 3 | C23: Tarif de frais administratifs 3 | D23: Tariffa dei costi di gestione 3
A24: vk4 | B24: Verwaltungskostentarif 4 | C24: Tarif de frais administratifs 4 | D24: Tariffa dei costi di gestione 4
A25: vk5 | B25: Verwaltungskostentarif 5 | C25: Tarif de frais administratifs 5 | D25: Tariffa dei costi di gestione 5
A26: as_pencas | B26: Agrisano Pencas | C26: Agrisano Pencas | D26: Agrisano Pencas
A27: as_pencas1 | B27: Berufliche Vorsorge | C27: Prévoyance professionnelle | D27: Previdenza professionale
A28: person | B28: Versicherte Person | C28: Personne assuré | D28: Persona assicurata
A29: name | B29: Vorname / Name | C29: Prénom / Nom | D29: Nome / Cognome
A30: ahvnr | B30: AHV-Nr. | C30: N° AVS | D30: N. AVS
A31: jahrgang | B31: Jahrgang | C31: Année de naissance | D31: Anno di nascita
A32: jahrgang2 | B32: Jahrgang | C32: Année de naissance | D32: Annata
A33: geschlecht | B33: Geschlecht | C33: Sexe | D33: Sesso
A34: pk | B34: Versicherungslösung | C34: Solution d'assurance | D34: Soluzione assicurativa
A35: plan | B35: Plan | C35: Plan | D35: Piano
A36: basisplan | B36: Basisplan | C36: Plan de base | D36: Piano di base
A37: koa | B37: Koordinationsabzug | C37: Déduction de coordination | D37: Deduzione di coordinamento
A38: vktarif | B38: Verwaltungskostentarif | C38: Tarif des frais administratifs | D38: Tariffa die costi di gestione
A39: zusatzplan | B39: Zusatzplan | C39: Plan supplementaire | D39: Piano supplementare
A40: anstellung | B40: Anstellung | C40: L'emploi | D40: L'impiego
A41: jahr | B41: Jahr | C41: Année | D41: Anno
A42: anstellungsdauer | B42: Anstellungsdauer von | C42: Durée de l'emploi du | D42: Durata dell’impiego da
A43: anstellungsdauer_bis | B43: Anstellungsdauer bis | C43: Durée de l'emploi au | D43: Durata dell’impiego a
A44: anstellungsdauer_k | B44: Anst. von | C44: emploi du | D44: Impiegato da
A45: anstellungsdauer_bis_k | B45: Anst. bis | C45: emploi au | D45: Impiegato a
A46: ahvlohn | B46: AHV-Lohn während der Anstellung | C46: Salaire AVS perçu pour toute la durée | D46: Salario AVS percepito durante l’impiego
A47: ahvlohn_k | B47: AHV-Lohn | C47: Salaire AVS | D47: Salario AVS
A48: text4 | B48: Auf Anstellungsdauer bezogen | C48: Pour la durée de l'emploi | D48: Per la durata dell'impiego
A49: text5 | B49: Minimal koordinierter Lohn | C49: Salaire coordoné LPP min. perçu | D49: Salario coord. min. durante l’impiego
A50: vers_lohn | B50: Versicherter Lohn | C50: Salaire assuré | D50: Salario ass. durante l’impiego
A51: tage | B51: Tage | C51: Jours | D51: Giorni
A52: hinweis1 | B52: Achtung, Sie haben einen reduzierten Verwaltungskostentarif ausgewählt. | C52: Attention, vous avez choisi un tarif réduit pour les frais administratifs. | D52: Attenzione, per i costi di gestione è stata selezionata una tariffa ridotta
A53: hinweis2 | B53: Dieser gilt nur nach Absprache mit der Agrisano Pencas. | C53: Celui-ci n'est valable q'après entente avec l'Agrisano Pencas. | D53: che trova applicazione soltanto previo accordo con Agrisano Pencas.
A54: sparprämie | B54: Sparbeitrag | C54: Cotisation d'épargne | D54: Premio di risparmio
A55: risikoprämie | B55: Risikobeitrag | C55: Cotisation de risque | D55: Premio di rischio
A56: verwkosten | B56: Verwaltungskosten | C56: Frais administratifs | D56: Costi di gestione
A57: sifo | B57: Beitrag Sicherheitsfonds | C57: Fonds de garantie | D57: Contributo per il fondo di garanzia
A58: tot | B58: Total | C58: Totale | D58: Totale
A59: tot_prämie | B59: Total Beitrag | C59: Cotisation totale | D59: Totale del premio
A60: altersgutschrift | B60: Altersgutschrift | C60: Bonification de vieillesse | D60: Accredito di vecchiaia
A61: beitrag | B61: Beitrag | C61: Cotisation | D61: Contributo
A62: tabelle | B62: Tabelle | C62: Tableau | D62: Tabella
A63: netto | B63: netto | C63: nette | D63: netto
A64: vers_lohnes | B64: in % vers. Lohn | C64: % du salaire assuré | D64: % del salario assicurato
A65: AHVLohnes | B65: in % AHV-Lohn | C65: % du salaire AVS | D65: % del salario AVS
A66: franken | B66: CHF | C66: CHF | D66: CHF
A67: beitrag_an_max | B67: Maximaler Anteil des Arbeitnehmers | C67: Cotisation maximale de l'employé | D67: Contributo massimo del lavoratore
A68: beitrag_an | B68: Beitrag Arbeitnehmer | C68: Cotisation de l'employé | D68: Contributo del lavoratore
A69: beitrag_an2 | B69: davon Anteil Arbeitnehmer | C69: Part du salarié | D69: Contributo del lavoratore
A70: beitrag_ag | B70: Beitrag Arbeitgeber | C70: Cotisation de l'employeur | D70: Contributo del datore di lavoro
A71: prämie_betrieb | B71: Total Beiträge Betrieb | C71: Cotisation totale de l'exploitation | D71: Totale die contributi della società
A72: titel_bestandesrechner | B72: Bestandesrechner Agrisano Pencas | C72: Calculateur de prime | D72: Calcolo dei contributi del portafoglio
A73: name_betrieb | B73: Name Betrieb | C73: Nom de | D73: Nome
A74: adresse | B74: Adresse | C74: Adresse | D74: Indirizzo
A75: sparprämie_best | B75: Sparbeitrag % | C75: Cotisation d'épargne (%) | D75: Premi risparmio (%)
A76: sparprämie2_best | B76: Sparbeitrag | C76: Cotisation d'épargne | D76: Premi risparmio
A77: risikoprämie_best | B77: Risikobeitrag % | C77: Cotisation de risque (%) | D77: Premi rischio (%)
A78: risikoprämie2_best | B78: Risikobeitrag | C78: Cotisation de risque | D78: Premi rischio
A79: verwkosten2 | B79: Verwaltungs-kosten | C79: Frais de gestion | D79: Costi di gestione
A80: sifo2 | B80: Sicherheits-fonds Beitrag | C80: Fonds de sécurité | D80: Fondo di garanzia
A81: titel2 | B81: Beitragsverzeichnis Pensionskasse | C81: Cotisations de la prévoyance professionnelle | D81: Contributi della previdenza professionale
A82: grundbeitrag_vk | B82: Grundbeitrag Verwaltungskosten | C82: Cotisation de base frais administratifs | D82: Contributo di base per le spese amministrtive
A83: Zusatz_vk | B83: Verwaltungskosten Zusatzplan | C83: Frais de gestion plan supplementaire | D83: Costi di gestione piano supplementare
A84: geschlecht1k | B84: M | C84: M | D84: M
A85: geschlecht2k | B85: W | C85: F | D85: F
A86: fusszeile | B86: Laurstrasse 10 | 5201 Brugg | Telefon +41 (0)56 461 78 11 | Fax +41 (0)56 461 71 01 pencas@agrisano.ch | www.agrisano.ch | C86: Laurstrasse 10 | 5201 Brugg | Téléphone +41 (0)56 461 78 11 | Fax +41 (0)56 461 71 01 pencas@agrisano.ch | www.agrisano.ch | D86: Laurstrasse 10 | 5201 Brugg | Telefono +41 (0)56 461 78 11 | Fax +41 (0)56 461 71 01 pencas@agrisano.ch | www.agrisano.ch
A87: auswahl_iv1 | B87: keine Reduktion | C87: Pas de réduction | D87: Nessuna riduzione
A88: auswahl_iv2 | B88: kein BVG | C88: Pas de LPP | D88: Nessuna LPP
A89: ivgrad | B89: Invaliditätsgrad | C89: Degré d'invalidité | D89: Grado di invalidità
A90: red_koa | B90: Reduktion Koordinationsabzug | C90: Réduction de la déduction de coordination | D90: Riduzione delle deduzione di coordinamento
A91: aktiv | B91: Aktiv | C91: actif | D91: attivo
A92: nichtaktiv | B92: Nicht aktiv | C92: Non actif | D92: non attivo
A93: hinweis_zins | B93: Der Zins für die Nachschüssigkeit wurde nicht berücksichtigt. | C93: Les intérêts pour le paiement à terme échu n'a pas été pris en compte. | D93: Le supplemento per versamento posticipato non è considerato.
A94: hinweis_iv | B94: Der IV - Beitragsrechner ist aktiv! Bitte entsprechendes Tabellenblatt verwenden. | C94: Le calculateur de cotisation AI est actif! Veuillez utiliser la feuille Excel correspondante. | D94: Il calcolatore dei contributi IV è attivo! Utilizzare il foglio di calcolo corrispondente.
A95: titel1_iv | B95: Berechnung der Beiträge an die berufliche Vorsorge - Bei Invalidität | C95: Calcul des cotisations à la prévoyance professionnelle - en cas d'invalidité | D95: Calcolo dei contributi a favore della previdenza pro-fessionale
A96: titel_hinweis | B96: Hinweise | C96: Indication | D96: Indicazione
A97: ivrechner | B97: IV-Rechner | C97: Calculateur AI | D97: Calcolatore AI
A98: ivrechner_aktiv | B98: IV-Rechner aktiv? | C98: Calculateur AI actif? | D98: Calcolatore AI attivo?
A99: hinweis_druck | B99: Zum Drucken das Tabellenblatt "Druck" verwenden | C99: Pour imprimer le tableau utiliser le "Imprimer" | D99: Per stampare la tabella utilizzare "Stampa"
A100: hinweis_erf_bestand | B100: Hinweis: Um invalide Personen zu berechnen, bitte den Einzelrechner verwenden. | C100: Indication : Pour le calcul de personnes invalides, veuillez utiliser le calculateur individuel. | D100: Nota: per il calcolo degli invalidi, utilizzare il calcolatore individuale.

Sheet Berechnung_einzeln (hidden)
A1: Berechnungen
A3: Anstellungsdauer | E3: Bedingungen | F3: Standard | G3: mit KOA
A4: Start Anstellung | B4: =u_anst_start -> 44562 | E4: Jahrgang erfasst | F4: =IF(u_jahrgang>0,TRUE,FALSE) -> TRUE
A5: Ende Anstellung | B5: =u_anst_ende -> 44926 | E5: Geschlecht erfasst | F5: =IF(u_geschlecht1="",FALSE,TRUE) -> TRUE
A6: Anzahl Tage | B6: =IF(OR(B4=0,B5=0,B5-B4+1<0),1,B5-B4+1) -> 365 | E6: Alter min erreicht | F6: =IF(p_jahr-p_alter_min>=u_jahrgang,TRUE,FALSE) -> TRUE
E7: Unter Alter max | F7: =IF(AND(u_geschlecht=1,p_jahr-p_alter_max_m<=u_jahrgang),TRUE,IF(AND(u_geschlecht=2,p_jahr-p_alter_max_w<=u_jahrgang),TRUE,FALSE)) -> TRUE
A8: Lohn | C8: mit KOA | E8: Basisplan erfasst | F8: =IF(u_plan1="",FALSE,TRUE) -> TRUE
A9: AHV-Lohn während der Anstellung | B9: =u_lohn -> 86040 | E9: Koa erfasst | F9: =IF(u_plan_koa1="",FALSE,TRUE) -> TRUE
A10: AHV-Lohn auf Kalenderjahr hochgerechnet | B10: =u_lohn/b_anst_dauer*p_jahr_tage -> 86040 | E10: Vk-Tarif erfasst | F10: =IF(u_vkrabatt1="",FALSE,TRUE) -> TRUE
A11: min. koord. Lohn (auf Dauer) | B11: =ROUND(p_min_kolohn/p_jahr_tage*b_anst_dauer,0) -> 3585 | C11: =ROUND(p_min_kolohn/p_jahr_tage*b_anst_dauer,0) -> 3585 | E11: Tage vorhanden | F11: =b_anst_dauer>1 -> TRUE
A12: eff. Koordinationabzug (auf Dauer) | B12: =IF(F20,ROUND(p_max_koabzug/p_jahr_tage*b_anst_dauer,0),0) -> 25095 | C12: =ROUND(p_max_koabzug/p_jahr_tage*b_anst_dauer,0) -> 25095 | E12: Lohn vorhanden | F12: =B9>0 -> TRUE | H12: => Lohn grösser 0
A13: Max. vers. Lohn BVG (auf Dauer) | B13: =ROUND(p_maxBVGLohn/p_jahr_tage*b_anst_dauer,2) -> 860400 | C13: =ROUND(p_maxBVGLohn/p_jahr_tage*b_anst_dauer,2) -> 860400 | E13: Über Eintrittsschwelle | F13: =b_lohn_jahr>p_eintrittsschwelle -> TRUE
A14: Max Lohn - Koordinationsabzug | B14: =B13-B12 -> 835305 | C14: =C13-C12 -> 835305 | E14: Lohn über min. Ko.lohn | F14: =B9>=(B11+B12) -> TRUE | G14: =B9>=(C11+C12) -> TRUE | H14: => wenn falsch, dann KoordLohn = min. koordLohn // eigener Wert für mit/ohne Koa
A15: Koord. Lohn (auf Dauer) | B15: =ROUND(IF(b_grundlagen_erf,IF(Listen!F88=0,0,IF($F$15,B14,IF($F$14,u_lohn-B12,B11))),0),0) -> 60945 | C15: =ROUND(IF(b_grundlagen_erf,IF(IF('Beitragsrechner IV'!G3=2022,u_ivfaktor=0,u_ivfaktor2=0),0,IF(F15,C14,IF(G14,u_lohn-C12,C11))),0),0) -> 60945 | E15: Übertrifft max. Vers Lohn | F15: =b_lohn_jahr>p_maxBVGLohn -> FALSE
A16: überobl. vers Lohn | B16: =ROUND(IF(F18,b_koordLohn-p_max_kolohn/p_jahr_tage*b_anst_dauer,0),0) -> 0 | C16: =ROUND(IF(F18,C15-p_max_kolohn/p_jahr_tage*b_anst_dauer,0),0) -> 0 | E16: Grundlagen 1 erfüllt | F16: =AND(F4:F12) -> TRUE | H16: => Alles Bedingungen erfüllt, ohne Lohn über Eintrittsschwelle
A17: BVG vers. Lohn | B17: =ROUND(IF(F18,C15-C16,C15),0) -> 60945 | E17: Grundlagen erfüllt | F17: =AND(F13,F16) -> TRUE | H17: => Grundlagen 1 und Lohn über Eintrittsschwelle
E18: Übertrifft max. AHV Lohn | F18: =b_lohn_jahr>p_max_ahvlohn -> FALSE
A19: Beiträge Basisplan
A20: Total Beitragssatz | B20: =IF(b_grundlagen_erf1,VLOOKUP(u_jahrgang,pr_risiko,u_plan+u_geschlecht,FALSE)-VLOOKUP(u_vkrabatt,pr_vkrabatt,2,FALSE),0) -> 0.18611 | E20: Plan mit Ko.abzug | F20: =IF(F9,IF(u_plan_koa=1,TRUE,FALSE),FALSE) -> TRUE
A21: Sparbeitrag Satz | B21: =ROUND(IF(b_grundlagen_erf1,VLOOKUP(p_jahr-u_jahrgang,pr_sparteil,u_geschlecht+1,FALSE)/(1+p_zins),0),5) -> 0.14851 | E21: VK max | F21: =B27>B26 -> TRUE
A22: Sparbeitrag | B22: =ROUND(IF(b_grundlagen_erf,b_koordLohn*B21,0),1) -> 9050.9
A23: Risikobeitrag Satz | B23: =IF(b_grundlagen_erf1,ROUND(b_prämie_tot-b_sparprämie_satz-b_vk_theo-b_sifo_satz,5),0) -> 0.0224 | E23: Zusatzplan vorhanden | F23: =u_zusatzplan>0 -> FALSE
A24: Risikobeitrag | B24: =ROUND(IF(b_grundlagen_erf,b_koordLohn*B23,0),1) -> 1365.2
A25: VK Satz theoretisch | B25: =VLOOKUP(u_jahrgang,pr_risiko,9,FALSE)-VLOOKUP(u_vkrabatt,pr_vkrabatt,2,FALSE) -> 0.014 | E25: IV-Rechner aktiv | F25: =IF(u_ivaktiv1=1,TRUE,FALSE) -> FALSE
A26: VK max | B26: =VLOOKUP(u_vkrabatt,pr_vkrabatt,3,FALSE)/p_jahr_tage*b_anst_dauer -> 360
A27: VK theoretisch | B27: =B25*b_koordLohn -> 853.23
A28: VK effektiv | B28: =ROUND(IF(b_grundlagen_erf,IF(F21,B26,B27),0),1) -> 360
A29: VK Satz effektiv | B29: =IFERROR(IF(b_grundlagen_erf,ROUND(b_vkeff/b_koordLohn,3),0),0) -> 0.006
A30: SiFo Satz | B30: =IF(b_grundlagen_erf1,VLOOKUP(u_jahrgang,pr_risiko,8,FALSE),0) -> 0.0012
A31: SiFo Betrag | B31: =ROUND(IF(b_grundlagen_erf,B30*B17,0),1) -> 73.1
A32: Total Beitrag Satz | B32: =IFERROR(IF(b_grundlagen_erf,(ROUND(b_sparprämie,1)+ROUND(b_sifo,1)+ROUND(b_vkeff,1)+ROUND(b_risikoprämie,1))/b_koordLohn,""),0) -> 0.1780162442
A33: Total Beiträge | B33: =IF(b_grundlagen_erf,b_prämie_tot_netto*b_koordLohn,0) -> 10849.2
A35: Beiträge Zusatzplan
A36: Sparbeitrag Satz | B36: =IF(AND(b_grundlagen_erf,F23),ROUND(VLOOKUP(p_jahr-u_jahrgang,pr_sparteil,u_zusatzplan+3,FALSE)/(1+p_zins),5),0) -> 0
A37: Sparbeitrag | B37: =ROUND(IF(AND(b_grundlagen_erf,F23),B36*b_koordLohn,0),1) -> 0
A38: Risikobeitrag Satz | B38: =IF(u_zusatzplan>2,IF(AND(b_grundlagen_erf,F23),ROUND(VLOOKUP(p_jahr-u_jahrgang,Risikoprämie_Zusatz,u_zusatzplan-1,FALSE)/(1+p_zins),4),0),0) -> 0
A39: Risikobeitrag | B39: =IF(u_zusatzplan<3,0,ROUND(IF(AND(b_grundlagen_erf,F23),B38*b_koordLohn,0),1)) -> 0
A40: Total Beiträge | B40: =SUM(B37,B39) -> 0
A42: Total Basisplan und Zusatzplan
A43: Total Beiträge | B43: =b_prämie_ges+b_total_zusatz -> 10849.2
A44: Abeitnehmer Beiträge | B44: =B43/2 -> 5424.6
A45: Total in % vers. Lohn | B45: =IF(b_koordLohn=0,0,B43/b_koordLohn) -> 0.1780162442
A46: Arbeitnehmer in % vers. Lohn | B46: =B45/2 -> 0.08900812208
A47: Total in % AHV-Lohn | B47: =IF(B9=0,0,B43/B9) -> 0.1260948396
A48: Arbeitnehmer in % AHV-Lohn | B48: =B47/2 -> 0.0630474198

Sheet Beitragsrechner
I2: =VLOOKUP("as_pencas",texte,u_sprache,FALSE) -> Agrisano Pencas
I3: =VLOOKUP("as_pencas1",texte,u_sprache,FALSE) -> Previdenza professionale | L3: =TODAY() -> 2022-07-21
B4: =VLOOKUP("titel1",texte,u_sprache,FALSE) -> Calcolo dei contributi a favore della previdenza professionale | O4: it
B6: =VLOOKUP("text1",texte,u_sprache,FALSE) -> Il calcolo dei contributi si basa sui dati registrati. In definitiva, è decisiva la fattura dei contributi di Agrisano Pencas, che viene redatta sulla base dei salari AVS effettivamente dichiarati.
B7: =VLOOKUP("text2",texte,u_sprache,FALSE) -> In caso di domande sull’avviso di premio si prega di rivolgersi alla Fondazione Agrisano, Assicurazione globale (tel. 056 461 78 55). Per il calcolo del premio di impiegati (parzialmente) invalidi si prega di prendere contatto con Agrisano Pencas (tel. 056 461 78 11).
B8: =VLOOKUP("text3",texte,u_sprache,FALSE) -> L’obbligo di assicurazione trova applicazione soltanto per i rapporti d’impiego che sono stati contratti per una durata superiore a 3 mesi (applicabile anche se il rapporto di lavoro viene interrotto temporaneamente per un periodo massimo di 3 mesi, ma la durata complessiva dell’occupazione è comunque superiore a 92 giorni).
B10: =VLOOKUP("name",texte,u_sprache,FALSE) -> Nome / Cognome | G10: =VLOOKUP("jahr",texte,u_sprache,FALSE) -> Anno | I10: =p_jahr -> 2022
B11: =VLOOKUP("ahvnr",texte,u_sprache,FALSE) -> N. AVS | G11: =VLOOKUP("anstellungsdauer",texte,u_sprache,FALSE) -> Durata dell’impiego da | I11: 2022-01-01
B12: =VLOOKUP("jahrgang",texte,u_sprache,FALSE) -> Anno di nascita | D12: 1970 | G12: =VLOOKUP("anstellungsdauer_bis",texte,u_sprache,FALSE) -> Durata dell’impiego a | I12: 2022-12-31
B13: =VLOOKUP("geschlecht",texte,u_sprache,FALSE) -> Sesso | D13: Uomo | G13: =VLOOKUP("tage",texte,u_sprache,FALSE) -> Giorni | I13: =Berechnung_einzeln!B6 -> 365
B14: =VLOOKUP("basisplan",texte,u_sprache,FALSE) -> Piano di base | D14: Piano A | G14: =VLOOKUP("ahvlohn",texte,u_sprache,FALSE) -> Salario AVS percepito durante l’impiego | I14: 86040
B15: =VLOOKUP("koa",texte,u_sprache,FALSE) -> Deduzione di coordinamento | D15: Con deduzione di coordinamento | G15: =VLOOKUP("text4",texte,u_sprache,FALSE) -> Per la durata dell'impiego
B16: =VLOOKUP("vktarif",texte,u_sprache,FALSE) -> Tariffa die costi di gestione | D16: Tariffa standard | G16: =VLOOKUP("text5",texte,u_sprache,FALSE) -> Salario coord. min. durante l’impiego | I16: =Berechnung_einzeln!B11 -> 3585
B17: =VLOOKUP("zusatzplan",texte,u_sprache,FALSE) -> Piano supplementare | D17: Senza piano supplementare | G17: =VLOOKUP("koa",texte,u_sprache,FALSE) -> Deduzione di coordinamento | I17: =Berechnung_einzeln!B12 -> 25095
G18: =VLOOKUP("vers_lohn",texte,u_sprache,FALSE) -> Salario ass. durante l’impiego | I18: =b_koordLohn -> 60945
B19: =IF(u_vkrabatt<>0,VLOOKUP("hinweis1",texte,u_sprache,FALSE),"") -> 
B20: =IF(u_vkrabatt<>0,VLOOKUP("hinweis2",texte,u_sprache,FALSE),"") -> 
D21: =VLOOKUP("sparprämie",texte,u_sprache,FALSE) -> Premio di risparmio | F21: =VLOOKUP("risikoprämie",texte,u_sprache,FALSE) -> Premio di rischio | H21: =VLOOKUP("verwkosten",texte,u_sprache,FALSE) -> Costi di gestione | J21: =VLOOKUP("sifo",texte,u_sprache,FALSE) -> Contributo per il fondo di garanzia | L21: =VLOOKUP("tot",texte,u_sprache,FALSE) -> Totale
D23: % | E23: =VLOOKUP("altersgutschrift",texte,u_sprache,FALSE) -> Accredito di vecchiaia | F23: % | G23: =VLOOKUP("beitrag",texte,u_sprache,FALSE) -> Contributo | H23: % | I23: =VLOOKUP("beitrag",texte,u_sprache,FALSE) -> Contributo | J23: % | K23: =VLOOKUP("beitrag",texte,u_sprache,FALSE) -> Contributo | L23: =VLOOKUP("beitrag",texte,u_sprache,FALSE) -> Contributo
B25: =VLOOKUP("basisplan",texte,u_sprache,FALSE) -> Piano di base | D25: =b_sparprämie_satz -> 0.14851 | E25: =b_sparprämie -> 9050.9 | F25: =b_risiko_satz -> 0.0224 | G25: =b_risikoprämie -> 1365.2 | H25: =Berechnung_einzeln!B29 -> 0.006 | I25: =b_vkeff -> 360 | J25: =b_sifo_satz -> 0.0012 | K25: =b_sifo -> 73.1 | L25: =b_prämie_ges -> 10849.2
B27: =VLOOKUP("zusatzplan",texte,u_sprache,FALSE) -> Piano supplementare | D27: =b_sparprämie_satz_z -> 0 | E27: =b_sparprämie_z -> 0 | F27: =Berechnung_einzeln!B38 -> 0 | G27: =Berechnung_einzeln!B39 -> 0 | L27: =b_total_zusatz -> 0
J29: =VLOOKUP("vers_Lohnes",texte,u_sprache,FALSE) -> % del salario assicurato | K29: =VLOOKUP("AHVLohnes",texte,u_sprache,FALSE) -> % del salario AVS
H30: =VLOOKUP("tot_prämie",texte,u_sprache,FALSE) -> Totale del premio | J30: =Berechnung_einzeln!B45 -> 0.1780162442 | K30: =Berechnung_einzeln!B47 -> 0.1260948396 | L30: =Berechnung_einzeln!B43 -> 10849.2
H32: =VLOOKUP("beitrag_an_max",texte,u_sprache,FALSE) -> Contributo massimo del lavoratore | J32: =Berechnung_einzeln!B46 -> 0.08900812208 | K32: =Berechnung_einzeln!B48 -> 0.0630474198 | L32: =Berechnung_einzeln!B44 -> 5424.6
E38: =VLOOKUP("hinweis_iv",texte,u_sprache,FALSE) -> Il calcolatore dei contributi IV è attivo! Utilizzare il foglio di calcolo corrispondente.
F49: =VLOOKUP("hinweis_druck",texte,u_sprache,FALSE) -> Per stampare la tabella utilizzare "Stampa"

Sheet Beitragsrechner IV (hidden)
B2: =VLOOKUP("ivrechner",texte,u_sprache,FALSE) -> Calcolatore AI
B3: =VLOOKUP("ivrechner_aktiv",texte,u_sprache,FALSE) -> Calcolatore AI attivo? | D3: Nicht aktiv | F3: Eintritt AUF | G3: alt
I6: =VLOOKUP("as_pencas",texte,u_sprache,FALSE) -> Agrisano Pencas
I7: =VLOOKUP("as_pencas1",texte,u_sprache,FALSE) -> Previdenza professionale | L7: =TODAY() -> 2022-07-21
B8: =VLOOKUP("titel1_iv",texte,u_sprache,FALSE) -> Calcolo dei contributi a favore della previdenza pro-fessionale
B10: =VLOOKUP("text1",texte,u_sprache,FALSE) -> Il calcolo dei contributi si basa sui dati registrati. In definitiva, è decisiva la fattura dei contributi di Agrisano Pencas, che viene redatta sulla base dei salari AVS effettivamente dichiarati.
B11: =VLOOKUP("text2",texte,u_sprache,FALSE) -> In caso di domande sull’avviso di premio si prega di rivolgersi alla Fondazione Agrisano, Assicurazione globale (tel. 056 461 78 55). Per il calcolo del premio di impiegati (parzialmente) invalidi si prega di prendere contatto con Agrisano Pencas (tel. 056 461 78 11).
B12: =VLOOKUP("text3",texte,u_sprache,FALSE) -> L’obbligo di assicurazione trova applicazione soltanto per i rapporti d’impiego che sono stati contratti per una durata superiore a 3 mesi (applicabile anche se il rapporto di lavoro viene interrotto temporaneamente per un periodo massimo di 3 mesi, ma la durata complessiva dell’occupazione è comunque superiore a 92 giorni).
B14: =VLOOKUP("name",texte,u_sprache,FALSE) -> Nome / Cognome | G14: =VLOOKUP("jahr",texte,u_sprache,FALSE) -> Anno | I14: =p_jahr -> 2022
B15: =VLOOKUP("ahvnr",texte,u_sprache,FALSE) -> N. AVS | G15: =VLOOKUP("anstellungsdauer",texte,u_sprache,FALSE) -> Durata dell’impiego da | I15: 2022-01-01
B16: =VLOOKUP("jahrgang",texte,u_sprache,FALSE) -> Anno di nascita | D16: 1988 | G16: =VLOOKUP("anstellungsdauer_bis",texte,u_sprache,FALSE) -> Durata dell’impiego a | I16: 2022-12-31
B17: =VLOOKUP("geschlecht",texte,u_sprache,FALSE) -> Sesso | D17: männlich | G17: =VLOOKUP("tage",texte,u_sprache,FALSE) -> Giorni | I17: =Berechnung_einzeln!B6 -> 365
B18: =VLOOKUP("basisplan",texte,u_sprache,FALSE) -> Piano di base | D18: Plan A | G18: =VLOOKUP("ahvlohn",texte,u_sprache,FALSE) -> Salario AVS percepito durante l’impiego | I18: 48000
B19: =VLOOKUP("koa",texte,u_sprache,FALSE) -> Deduzione di coordinamento | D19: ohne Koordinationabzug | G19: =VLOOKUP("text4",texte,u_sprache,FALSE) -> Per la durata dell'impiego
B20: =VLOOKUP("vktarif",texte,u_sprache,FALSE) -> Tariffa die costi di gestione | D20: Standardtarif | G20: =VLOOKUP("text5",texte,u_sprache,FALSE) -> Salario coord. min. durante l’impiego | I20: =Berechnung_einzeln!B11 -> 3585
B21: =VLOOKUP("zusatzplan",texte,u_sprache,FALSE) -> Piano supplementare | D21: Zusatzplan E | G21: =VLOOKUP("ivgrad",texte,u_sprache,FALSE) -> Grado di invalidità | I21: 0.4
G22: =VLOOKUP("red_koa",texte,u_sprache,FALSE) -> Riduzione delle deduzione di coordinamento | I22: =IF(G3="alt",u_ivreduktion2,u_ivreduktion) -> Nessuna riduzione
G23: =VLOOKUP("koa",texte,u_sprache,FALSE) -> Deduzione di coordinamento | I23: =Berechnung_einzeln!B12 -> 25095
B24: =IF(u_vkrabatt<>0,VLOOKUP("hinweis1",texte,u_sprache,FALSE),"") ->  | G24: =VLOOKUP("vers_lohn",texte,u_sprache,FALSE) -> Salario ass. durante l’impiego | I24: =Berechnung_einzeln!B15 -> 60945
B25: =IF(u_vkrabatt<>0,VLOOKUP("hinweis2",texte,u_sprache,FALSE),"") -> 
D27: =VLOOKUP("sparprämie",texte,u_sprache,FALSE) -> Premio di risparmio | F27: =VLOOKUP("risikoprämie",texte,u_sprache,FALSE) -> Premio di rischio | H27: =VLOOKUP("verwkosten",texte,u_sprache,FALSE) -> Costi di gestione | J27: =VLOOKUP("sifo",texte,u_sprache,FALSE) -> Contributo per il fondo di garanzia | L27: =VLOOKUP("tot",texte,u_sprache,FALSE) -> Totale
D29: % | E29: =VLOOKUP("altersgutschrift",texte,u_sprache,FALSE) -> Accredito di vecchiaia | F29: % | G29: =VLOOKUP("beitrag",texte,u_sprache,FALSE) -> Contributo | H29: % | I29: =VLOOKUP("beitrag",texte,u_sprache,FALSE) -> Contributo | J29: % | K29: =VLOOKUP("beitrag",texte,u_sprache,FALSE) -> Contributo | L29: =VLOOKUP("beitrag",texte,u_sprache,FALSE) -> Contributo
B31: =VLOOKUP("basisplan",texte,u_sprache,FALSE) -> Piano di base | D31: =b_sparprämie_satz -> 0.14851 | E31: =b_sparprämie -> 9050.9 | F31: =b_risiko_satz -> 0.0224 | G31: =b_risikoprämie -> 1365.2 | H31: =Berechnung_einzeln!B29 -> 0.006 | I31: =b_vkeff -> 360 | J31: =b_sifo_satz -> 0.0012 | K31: =b_sifo -> 73.1 | L31: =b_prämie_ges -> 10849.2
B33: =VLOOKUP("zusatzplan",texte,u_sprache,FALSE) -> Piano supplementare | D33: =b_sparprämie_satz_z -> 0 | E33: =b_sparprämie_z -> 0 | F33: =Berechnung_einzeln!B38 -> 0 | G33: =Berechnung_einzeln!B39 -> 0 | L33: =b_total_zusatz -> 0
J35: =VLOOKUP("vers_Lohnes",texte,u_sprache,FALSE) -> % del salario assicurato | K35: =VLOOKUP("AHVLohnes",texte,u_sprache,FALSE) -> % del salario AVS
H36: =VLOOKUP("tot_prämie",texte,u_sprache,FALSE) -> Totale del premio | J36: =Berechnung_einzeln!B45 -> 0.1780162442 | K36: =Berechnung_einzeln!B47 -> 0.1260948396 | L36: =Berechnung_einzeln!B43 -> 10849.2
H38: =VLOOKUP("beitrag_an_max",texte,u_sprache,FALSE) -> Contributo massimo del lavoratore | J38: =Berechnung_einzeln!B46 -> 0.08900812208 | K38: =Berechnung_einzeln!B48 -> 0.0630474198 | L38: =Berechnung_einzeln!B44 -> 5424.6
H41: =VLOOKUP("beitrag_an_max",texte,u_sprache,FALSE) -> Contributo massimo del lavoratore | M41: =L36/2 -> 5424.6
C54: Bitte das Tabellenblatt "Druck" verwenden!

Sheet Druck
C8: =CONCATENATE(VLOOKUP("titel1",texte,u_sprache,FALSE)," ",p_jahr) -> Calcolo dei contributi a favore della previdenza professionale 2022 | O8: =TODAY() -> 2022-07-21
C11: =VLOOKUP("person",texte,u_sprache,FALSE) -> Persona assicurata | K11: =VLOOKUP("anstellung",texte,u_sprache,FALSE) -> L'impiego
C13: =VLOOKUP("name",texte,u_sprache,FALSE) -> Nome / Cognome | F13: =IF(u_name=0,"",u_name) ->  | K13: =VLOOKUP("jahr",texte,u_sprache,FALSE) -> Anno | O13: =p_jahr -> 2022
C14: =VLOOKUP("ahvnr",texte,u_sprache,FALSE) -> N. AVS | F14: =IF(u_ahvnr=0,"",u_ahvnr) ->  | K14: =VLOOKUP("anstellungsdauer",texte,u_sprache,FALSE) -> Durata dell’impiego da | O14: =u_anst_start -> 2022-01-01
C15: =VLOOKUP("jahrgang",texte,u_sprache,FALSE) -> Anno di nascita | F15: =u_jahrgang -> 1970 | K15: =VLOOKUP("anstellungsdauer_bis",texte,u_sprache,FALSE) -> Durata dell’impiego a | O15: =u_anst_ende -> 2022-12-31
C16: =VLOOKUP("geschlecht",texte,u_sprache,FALSE) -> Sesso | F16: =u_geschlecht1 -> Uomo | K16: =VLOOKUP("ahvlohn",texte,u_sprache,FALSE) -> Salario AVS percepito durante l’impiego | O16: =u_lohn -> 86040
C17: =VLOOKUP("ivgrad",texte,u_sprache,FALSE) -> Grado di invalidità | F17: =u_ivgrad -> 0.4
C19: =VLOOKUP("pk",texte,u_sprache,FALSE) -> Soluzione assicurativa | K19: =VLOOKUP("vers_lohn",texte,u_sprache,FALSE) -> Salario ass. durante l’impiego
C21: =VLOOKUP("plan",texte,u_sprache,FALSE) -> Piano | F21: =CONCATENATE(u_plan1,IF(u_zusatzplan =0,"",CONCATENATE("/",u_zusatzplan1))) -> Piano A | K21: =VLOOKUP("text4",texte,u_sprache,FALSE) -> Per la durata dell'impiego
C22: =VLOOKUP("koa",texte,u_sprache,FALSE) -> Deduzione di coordinamento | F22: =u_plan_koa1 -> Con deduzione di coordinamento | K22: =VLOOKUP("text5",texte,u_sprache,FALSE) -> Salario coord. min. durante l’impiego | O22: =Berechnung_einzeln!$B$11 -> 3585
C23: =VLOOKUP("vktarif",texte,u_sprache,FALSE) -> Tariffa die costi di gestione | F23: =u_vkrabatt1 -> Tariffa standard | K23: =VLOOKUP("koa",texte,u_sprache,FALSE) -> Deduzione di coordinamento | O23: =Berechnung_einzeln!$B$12 -> 25095
C24: =VLOOKUP("zusatzplan",texte,u_sprache,FALSE) -> Piano supplementare | F24: =u_zusatzplan1 -> Senza piano supplementare | K24: =VLOOKUP("vers_lohn",texte,u_sprache,FALSE) -> Salario ass. durante l’impiego | O24: =b_koordLohn -> 60945
K25: =VLOOKUP("red_koa",texte,u_sprache,FALSE) -> Riduzione delle deduzione di coordinamento | O25: =u_ivreduktion -> keine Reduktion
C28: =VLOOKUP("basisplan",texte,u_sprache,FALSE) -> Piano di base
C30: =VLOOKUP("sparprämie",texte,u_sprache,FALSE) -> Premio di risparmio | K30: =b_sparprämie_satz -> 0.14851 | N30: =b_sparprämie -> 9050.9
C33: =VLOOKUP("risikoprämie",texte,u_sprache,FALSE) -> Premio di rischio | K33: =Berechnung_einzeln!B23 -> 0.0224 | N33: =b_risikoprämie -> 1365.2
C36: =VLOOKUP("verwkosten",texte,u_sprache,FALSE) -> Costi di gestione | K36: =Berechnung_einzeln!B29 -> 0.006 | N36: =b_vkeff -> 360
C39: =VLOOKUP("sifo",texte,u_sprache,FALSE) -> Contributo per il fondo di garanzia | K39: =b_sifo_satz -> 0.0012 | N39: =b_sifo -> 73.1
C42: =VLOOKUP("tot_prämie",texte,u_sprache,FALSE) -> Totale del premio | N42: =b_prämie_ges -> 10849.2
C45: =VLOOKUP("zusatzplan",texte,u_sprache,FALSE) -> Piano supplementare
C47: =IF(u_zusatzplan=0,VLOOKUP("plan0",texte,u_sprache,FALSE),VLOOKUP("sparprämie",texte,u_sprache,FALSE)) -> Senza piano supplementare | K47: =Berechnung_einzeln!B36 -> 0 | N47: =Berechnung_einzeln!B37 -> 0
C50: =IF(u_zusatzplan=0,VLOOKUP("plan0",texte,u_sprache,FALSE),VLOOKUP("Risikoprämie",texte,u_sprache,FALSE)) -> Senza piano supplementare | K50: =Berechnung_einzeln!B38 -> 0 | N50: =Berechnung_einzeln!B39 -> 0
C53: =VLOOKUP("tot_prämie",texte,u_sprache,FALSE) -> Totale del premio | N53: =SUM(N47,N50) -> 0
K56: =VLOOKUP("vers_Lohnes",texte,u_sprache,FALSE) -> % del salario assicurato | L56: =VLOOKUP("AHVLohnes",texte,u_sprache,FALSE) -> % del salario AVS
C58: =VLOOKUP("tot",texte,u_sprache,FALSE) -> Totale
C60: =VLOOKUP("tot_prämie",texte,u_sprache,FALSE) -> Totale del premio | K60: =Berechnung_einzeln!B45 -> 0.1780162442 | L60: =Berechnung_einzeln!B47 -> 0.1260948396 | N60: =IF(N50="",N42+N47,N42+N47+N50) -> 10849.2
C63: =VLOOKUP("beitrag_an_max",texte,u_sprache,FALSE) -> Contributo massimo del lavoratore | K63: =Berechnung_einzeln!B46 -> 0.08900812208 | L63: =Berechnung_einzeln!B48 -> 0.0630474198 | N63: =N60/2 -> 5424.6
B67: =IF(u_vkrabatt<>0,CONCATENATE(VLOOKUP("hinweis1",texte,u_sprache,FALSE)," ",VLOOKUP("hinweis2",texte,u_sprache,FALSE)),"") -> 
B68: =VLOOKUP("text_druck",texte,u_sprache,FALSE) -> Il calcolo dei contributi si basa sui dati registrati. In definitiva, è decisiva la fattura dei contributi di Agrisano Pencas, che viene redatta sulla base dei salari AVS effettivamente dichiarati. Le supplemento per versamento posticipato è include. In caso di domande sull’avviso di premio si prega di rivolgersi alla Fondazione Agrisano, Assicurazione globale (tel. 056 461 78 55). Per il calcolo del premio di impiegati (parzialmente) invalidi si prega di prendere contatto con Agrisano Pencas (tel. 056 461 78 11). L’obbligo di assicurazione trova applicazione soltanto per i rapporti d’impiego che sono stati contratti per una durata superiore a 3 mesi (applicabile anche se il rapporto di lavoro viene interrotto temporaneamente per un periodo massimo di 3 mesi, ma la durata complessiva dell’occupazione è comunque superiore a 92 giorni).

Sheet Erfassung_Bestand (hidden)
A1: =VLOOKUP("titel_bestandesrechner",texte,u_sprache,FALSE) -> Calcolo dei contributi del portafoglio
A3: =VLOOKUP("basisplan",texte,u_sprache,FALSE) -> Piano di base | B3: Plan A | E3: =VLOOKUP("name_betrieb",texte,u_sprache,FALSE) -> Nome
A4: =VLOOKUP("koa",texte,u_sprache,FALSE) -> Deduzione di coordinamento | B4: mit Koordinationsabzug | E4: =VLOOKUP("adresse",texte,u_sprache,FALSE) -> Indirizzo
A5: =VLOOKUP("zusatzplan",texte,u_sprache,FALSE) -> Piano supplementare | B5: Kein Zusatzplan
A6: =VLOOKUP("vktarif",texte,u_sprache,FALSE) -> Tariffa die costi di gestione | B6: Standardtarif
A7: =VLOOKUP("beitrag_an",texte,u_sprache,FALSE) -> Contributo del lavoratore | B7: 0.5
A9: =VLOOKUP("hinweis_erf_bestand",texte,u_sprache,FALSE) -> Nota: per il calcolo degli invalidi, utilizzare il calcolatore individuale.
A11: =VLOOKUP("name",texte,u_sprache,FALSE) -> Nome / Cognome | B11: =VLOOKUP("geschlecht",texte,u_sprache,FALSE) -> Sesso | C11: =VLOOKUP("jahrgang",texte,u_sprache,FALSE) -> Anno di nascita | D11: =VLOOKUP("anstellungsdauer_k",texte,u_sprache,FALSE) -> Impiegato da | E11: =VLOOKUP("anstellungsdauer_bis_k",texte,u_sprache,FALSE) -> Impiegato a | F11: =VLOOKUP("ahvlohn_k",texte,u_sprache,FALSE) -> Salario AVS | G11: =VLOOKUP("zusatzplan",texte,u_sprache,FALSE) -> Piano supplementare
G12: =be_zusatzplan -> Kein Zusatzplan
G13: Kein Zusatzplan
G14: Kein Zusatzplan
G15: Kein Zusatzplan
G16: Kein Zusatzplan
G17: Kein Zusatzplan
G18: Kein Zusatzplan
G19: Kein Zusatzplan
G20: Kein Zusatzplan
G21: Kein Zusatzplan
G22: Kein Zusatzplan
G23: Kein Zusatzplan
G24: Kein Zusatzplan
G25: Kein Zusatzplan
G26: Kein Zusatzplan
G27: Kein Zusatzplan
G28: Kein Zusatzplan
G29: Kein Zusatzplan
G30: Kein Zusatzplan
G31: Kein Zusatzplan
G32: Kein Zusatzplan
G33: Kein Zusatzplan
G34: Kein Zusatzplan
G35: Kein Zusatzplan
G36: Kein Zusatzplan
G37: Kein Zusatzplan
G38: Kein Zusatzplan
G39: Kein Zusatzplan
G40: Kein Zusatzplan
G41: Kein Zusatzplan
G42: Kein Zusatzplan
G43: Kein Zusatzplan
G44: =be_zusatzplan -> Kein Zusatzplan
G45: Kein Zusatzplan
G46: Kein Zusatzplan
G47: Kein Zusatzplan
G48: Kein Zusatzplan
G49: Kein Zusatzplan
G50: Kein Zusatzplan
G51: Kein Zusatzplan
G52: Kein Zusatzplan
G53: Kein Zusatzplan
G54: Kein Zusatzplan
G55: Kein Zusatzplan
G56: Kein Zusatzplan
G57: Kein Zusatzplan
G58: Kein Zusatzplan
G59: Kein Zusatzplan
G60: Kein Zusatzplan
G61: Kein Zusatzplan
G62: Kein Zusatzplan
G63: Kein Zusatzplan
G64: Kein Zusatzplan
G65: Kein Zusatzplan
G66: Kein Zusatzplan
G67: Kein Zusatzplan
G68: Kein Zusatzplan
G69: Kein Zusatzplan
G70: Kein Zusatzplan
G71: =be_zusatzplan -> Kein Zusatzplan
G72: Kein Zusatzplan
G73: Kein Zusatzplan
G74: Kein Zusatzplan
G75: Kein Zusatzplan
G76: =be_zusatzplan -> Kein Zusatzplan
G77: Kein Zusatzplan
G78: Kein Zusatzplan
G79: Kein Zusatzplan
G80: Kein Zusatzplan
G81: Kein Zusatzplan
G82: Kein Zusatzplan
G83: Kein Zusatzplan
G84: Kein Zusatzplan
G85: Kein Zusatzplan
G86: Kein Zusatzplan
G87: Kein Zusatzplan
G88: Kein Zusatzplan
G89: Kein Zusatzplan
G90: Kein Zusatzplan
G91: Kein Zusatzplan
G92: Kein Zusatzplan
G93: Kein Zusatzplan
G94: Kein Zusatzplan
G95: Kein Zusatzplan
G96: Kein Zusatzplan
G97: Kein Zusatzplan
G98: Kein Zusatzplan
G99: Kein Zusatzplan
G100: Kein Zusatzplan
G101: Kein Zusatzplan
G102: Kein Zusatzplan
G103: Kein Zusatzplan
G104: Kein Zusatzplan
G105: Kein Zusatzplan
G106: Kein Zusatzplan
G107: Kein Zusatzplan
G108: Kein Zusatzplan
G109: Kein Zusatzplan
G110: Kein Zusatzplan
G111: Kein Zusatzplan
G112: Kein Zusatzplan
G113: Kein Zusatzplan
G114: Kein Zusatzplan
G115: Kein Zusatzplan
G116: Kein Zusatzplan
G117: Kein Zusatzplan
G118: Kein Zusatzplan
G119: Kein Zusatzplan
G120: Kein Zusatzplan
G121: Kein Zusatzplan
G122: Kein Zusatzplan
G123: Kein Zusatzplan
G124: Kein Zusatzplan
G125: Kein Zusatzplan
G126: Kein Zusatzplan
G127: Kein Zusatzplan
G128: Kein Zusatzplan
G129: Kein Zusatzplan
G130: Kein Zusatzplan
G131: Kein Zusatzplan
G132: Kein Zusatzplan
G133: Kein Zusatzplan
G134: Kein Zusatzplan
G135: Kein Zusatzplan
G136: Kein Zusatzplan
G137: Kein Zusatzplan
G138: Kein Zusatzplan
G139: Kein Zusatzplan
G140: =be_zusatzplan -> Kein Zusatzplan
G141: Kein Zusatzplan
G142: Kein Zusatzplan
G143: Kein Zusatzplan
G144: Kein Zusatzplan
G145: Kein Zusatzplan
G146: Kein Zusatzplan
G147: Kein Zusatzplan
G148: Kein Zusatzplan
G149: Kein Zusatzplan
G150: Kein Zusatzplan
G151: Kein Zusatzplan
G152: Kein Zusatzplan
G153: Kein Zusatzplan
G154: Kein Zusatzplan
G155: Kein Zusatzplan
G156: Kein Zusatzplan
G157: Kein Zusatzplan
G158: Kein Zusatzplan
G159: Kein Zusatzplan
G160: Kein Zusatzplan
G161: Kein Zusatzplan
G162: Kein Zusatzplan
G163: Kein Zusatzplan
G164: Kein Zusatzplan
G165: Kein Zusatzplan
G166: Kein Zusatzplan
G167: Kein Zusatzplan
G168: Kein Zusatzplan
G169: Kein Zusatzplan
G170: Kein Zusatzplan
G171: Kein Zusatzplan
G172: Kein Zusatzplan
G173: Kein Zusatzplan
G174: Kein Zusatzplan
G175: Kein Zusatzplan
G176: Kein Zusatzplan
G177: Kein Zusatzplan
G178: Kein Zusatzplan
G179: Kein Zusatzplan
G180: Kein Zusatzplan
G181: Kein Zusatzplan
G182: Kein Zusatzplan
G183: Kein Zusatzplan
G184: Kein Zusatzplan
G185: Kein Zusatzplan
G186: Kein Zusatzplan
G187: Kein Zusatzplan
G188: Kein Zusatzplan
G189: Kein Zusatzplan
G190: Kein Zusatzplan
G191: Kein Zusatzplan
G192: Kein Zusatzplan
G193: Kein Zusatzplan
G194: Kein Zusatzplan
G195: Kein Zusatzplan
G196: Kein Zusatzplan
G197: Kein Zusatzplan
G198: Kein Zusatzplan
G199: Kein Zusatzplan
G200: Kein Zusatzplan
G201: Kein Zusatzplan
G202: Kein Zusatzplan
G203: Kein Zusatzplan
... 810 more rows

Sheet Bestandesübersicht (hidden)
G1: Agrisano Pencas
G2: Berufliche Vorsorge
A3: Beitragsverzeichnis Pensionskasse 2022 | M3: =TODAY() -> 2022-07-21
A8: Plan A, mit Koordinationsabzug, Standardtarif | L8: Beitrag Arbeitnehmer | M8: 0.5
A9: Vorname / Name | C9: Jahrgang | D9: AHV-Lohn | E9: Versicherter Lohn | F9: Sparbeitrag % | G9: Sparbeitrag | H9: Risikobeitrag % | I9: Risikobeitrag | J9: Verwaltungs-kosten | K9: Sicherheits-fonds Beitrag | L9: Total Beitrag | M9: davon Anteil Arbeitnehmer
I10: Grundbeitrag Verwaltungskosten | L10: 95
I11: Verwaltungskosten Zusatzplan | L11: =IF(u_zusatzplan=0,0,95) -> 0
I12: Total Beiträge Betrieb | L12: =SUM(L10:L11) -> 95
I14: Beitrag Arbeitnehmer | L14: =SUM(M9:M10) -> 0
I15: Beitrag Arbeitgeber | L15: =L12-L14 -> 95
A16: Hinweise
A17: Der Zins für die Nachschüssigkeit wurde nicht berücksichtigt.
A18: Die Beitragsberechnung beruht auf den erfassten Daten. Massgebend ist schlussendlich die Beitragsrechnung der Agrisano Pencas, welche aufgrund der effektiv gemeldeten AHV-Löhne erstellt wird.
